bitfinex-derivatives/quotes_BTCF0:USTF0_20250108
["timestamp","ask_amount","ask_price","bid_price","bid_amount"]
[1736299916947,0.16223889,97201.0,97196.0,0.051414]
[1736299917151,0.051452,97201.0,97196.0,0.051414]
[1736299918046,0.051452,97201.0,97196.0,0.052414]
[1736299918652,0.051452,97201.0,97196.0,0.051414]
[1736299918854,0.051452,97201.0,97196.0,0.052414]
[1736299920557,0.051452,97201.0,97196.0,0.001]
[1736299920852,0.3608,97204.0,97202.0,0.05135101]
[1736299921644,0.3608,97214.0,97198.0,0.051453]
[1736299921645,0.051448,97210.0,97198.0,0.051453]
[1736299921852,0.3608,97206.0,97205.0,0.05145]
[1736299924957,0.3608,97206.0,97205.0,0.07802718]
[1736299925858,0.051448,97210.0,97207.0,0.051449]
[1736299926247,0.051448,97210.0,97208.0,0.051448]
[1736299929457,0.051448,97210.0,97208.0,0.04630321]
[1736299933563,0.7216,97215.0,97213.0,0.051446]
[1736299933869,0.7216,97215.0,97213.0,0.04630141]
[1736299934563,0.3608,97215.0,97213.0,0.04630141]
[1736299934763,0.3618,97215.0,97213.0,0.04630141]
[1736299934966,0.3638,97215.0,97213.0,0.04630141]
[1736299935368,0.3638,97215.0,97204.0,0.3608]
[1736299935670,0.3628,97215.0,97202.0,0.3192]
[1736299935865,0.3638,97215.0,97212.0,0.051446]
[1736299937169,0.3618,97215.0,97212.0,0.051446]
[1736299937569,0.3608,97215.0,97212.0,0.051446]
[1736299938561,0.3608,97215.0,97212.0,0.052446]
[1736299940778,0.051445,97214.0,97212.0,0.04315441]
[1736299941175,0.3608,97213.0,97200.0,0.10175641]
[1736299941376,0.3608,97201.0,97192.0,0.051457]
[1736299941575,0.051453,97199.0,97192.0,0.09254347]
[1736299941873,0.051455,97196.0,97192.0,0.08328913]
[1736299943680,0.051455,97196.0,97192.0,0.08428913]
[1736299944079,0.052455,97196.0,97192.0,0.08428913]
[1736299944677,0.3229,97195.0,97192.0,0.08328913]
[1736299946989,0.3239,97195.0,97192.0,0.08328913]
[1736299947191,0.3239,97195.0,97193.0,0.051456]
[1736299947392,0.001,97195.0,97193.0,0.04550366]
[1736299948294,0.001,97195.0,97193.0,0.40630366]
[1736299949197,0.6267,97212.0,97193.0,0.40630366]
[1736299949198,0.051446,97214.0,97194.0,1.5]
[1736299949496,0.358742,97220.0,97211.0,0.051447]
[1736299949697,0.3073,97220.0,97203.0,0.10175641]
[1736299949907,0.051443,97219.0,97210.0,0.10175641]
[1736299950109,0.3608,97211.0,97210.0,0.10175641]
[1736299950805,0.004,97213.0,97211.0,0.051447]
[1736299951301,0.36234306,97221.0,97209.0,0.3608]
[1736299951302,0.001,97211.0,97209.0,0.3608]
[1736299951496,0.001,97211.0,97210.0,0.051447]
[1736299952702,0.002,97211.0,97210.0,0.052447]
[1736299953207,0.001,97211.0,97210.0,0.052447]
[1736299953506,0.36234306,97221.0,97202.0,0.2896224]
[1736299953700,0.001,97211.0,97210.0,0.001]
[1736299954898,0.001,97211.0,97210.0,0.052447]
[1736299955702,0.36234306,97221.0,97215.0,0.051445]
[1736299958005,0.36234306,97221.0,97219.0,0.051442]
[1736299961910,0.36234306,97221.0,97219.0,0.09313355]
[1736299965105,0.36234306,97221.0,97219.0,0.07364456]
[1736299967405,0.41378506,97221.0,97219.0,0.04169155]
[1736299967601,0.051444,97217.0,97211.0,0.10175641]
[1736299967910,0.3608,97212.0,97211.0,0.10175641]
[1736299968113,0.3608,97212.0,97208.0,0.051448]
[1736299968311,0.6418,97211.0,97209.0,0.051448]
[1736299969812,0.6428,97211.0,97209.0,0.051448]
[1736299970810,0.6418,97211.0,97209.0,0.051448]
[1736299971008,0.6428,97211.0,97208.0,0.00871406]
[1736299971216,0.6428,97211.0,97201.0,0.3608]
[1736299971614,0.6428,97211.0,97209.0,0.051448]
[1736299975321,0.35344682,97212.0,97201.0,0.04308634]
[1736299975512,0.35344682,97212.0,97211.0,0.051447]
[1736299976212,0.32861975,97212.0,97211.0,0.051447]
[1736299976920,0.32961975,97212.0,97211.0,0.051447]
[1736299977218,0.32961975,97212.0,97211.0,0.04630231]
[1736299978313,0.29562955,97212.0,97211.0,0.04630231]
[1736299979928,0.001,97212.0,97211.0,0.04630231]
[1736299980519,0.12685244,97217.0,97216.0,0.051444]
[1736299981219,0.3608,97224.0,97223.0,0.051441]
[1736299981825,0.266,97229.0,97226.0,0.051439]
[1736299982329,0.266,97229.0,97227.0,0.051438]
[1736299982915,0.268,97229.0,97227.0,0.051438]
[1736299983117,0.268,97229.0,97220.0,0.3608]
[1736299983522,0.269,97229.0,97220.0,0.3608]
[1736299983920,0.051442,97221.0,97220.0,0.3608]
[1736299984723,0.3608,97226.0,97213.0,0.051446]
[1736299984920,0.3608,97226.0,97216.0,0.06674895]
[1736299985118,0.3608,97226.0,97216.0,0.1334979]
[1736299985318,0.3608,97226.0,97216.0,0.10175004]
[1736299986724,0.3608,97226.0,97216.0,0.15319404]
[1736299990124,0.3608,97226.0,97218.0,0.051443]
[1736299990726,0.12685244,97225.0,97218.0,0.051443]
[1736299991535,0.12685244,97224.0,97218.0,0.051443]
[1736299992335,0.12685244,97223.0,97218.0,0.051443]
[1736299992933,0.12685244,97223.0,97218.0,0.052443]
[1736299993433,0.12685244,97222.0,97218.0,0.051443]
[1736299993633,0.12685244,97222.0,97218.0,0.052443]
[1736299994030,0.12685244,97222.0,97218.0,0.001]
[1736299994338,0.12685244,97221.0,97219.0,0.051442]
[1736299994929,0.412239,97226.0,97219.0,0.051442]
[1736299995337,0.412239,97226.0,97220.0,0.051442]
[1736299996432,0.01530586,97219.0,97214.0,0.051445]
[1736299996628,0.3608,97226.0,97214.0,0.051445]
[1736299997029,0.3608,97226.0,97216.0,0.10175004]
[1736299997231,0.051443,97219.0,97217.0,0.051444]
[1736299998934,0.051443,97219.0,97217.0,0.052444]
[1736299999339,0.051443,97219.0,97217.0,0.001]
[1736300000745,0.05144,97224.0,97220.0,0.051442]
[1736300000930,0.3608,97226.0,97220.0,0.051442]
[1736300001132,0.051441,97222.0,97220.0,0.051442]
[1736300001534,0.3608,97226.0,97216.0,0.07046592]
[1736300002549,0.3608,97226.0,97225.0,0.051439]
[1736300002845,0.3155,97228.0,97225.0,0.051439]
[1736300004947,0.051439,97226.0,97218.0,0.051443]
[1736300005151,0.05144,97224.0,97218.0,0.051443]
[1736300005534,0.3175,97228.0,97218.0,0.051443]
[1736300005535,0.051442,97221.0,97218.0,0.051443]
[1736300005941,0.051443,97220.0,97218.0,0.051443]
[1736300007648,0.051443,97220.0,97217.0,0.32851685]
[1736300008341,0.051443,97219.0,97217.0,0.32851685]
[1736300010142,0.051443,97219.0,97217.0,0.29566517]
[1736300010745,0.12677923,97218.0,97217.0,0.29566517]
[1736300011143,0.12677923,97218.0,97212.0,0.051446]
[1736300011850,0.17822323,97218.0,97212.0,0.051446]
[1736300012555,0.051444,97217.0,97212.0,0.051446]
[1736300017058,0.051444,97217.0,97212.0,0.04202136]
[1736300023060,0.051444,97217.0,97211.0,0.04280044]
[1736300023061,0.3608,97222.0,97211.0,0.00109533]
[1736300023253,0.051445,97216.0,97212.0,0.051446]
[1736300023849,0.051445,97216.0,97096.0,0.18489461]
[1736300023850,0.3608,97213.0,97197.0,0.051454]
[1736300024054,0.3608,97213.0,97200.0,0.066777]
[1736300024251,0.3608,97213.0,97200.0,0.133554]
[1736300024252,0.297,97212.0,97200.0,0.133554]
[1736300024451,0.297,97212.0,97200.0,0.185006]
[1736300024650,0.297,97212.0,97198.0,0.05238211]
[1736300024964,0.297,97212.0,97200.0,0.066777]
[1736300025262,0.5984,97211.0,97200.0,0.066777]
[1736300025964,0.00257594,97205.0,97200.0,0.133554]
[1736300026156,0.3108,97211.0,97204.0,0.3608]
[1736300026457,0.349446,97212.0,97204.0,0.3608]
[1736300026655,0.001,97212.0,97204.0,0.3608]
[1736300026855,0.001,97212.0,97205.0,0.3023]
[1736300027062,0.001,97212.0,97211.0,0.051447]
[1736300028351,0.051443,97218.0,97205.0,0.9585]
[1736300028557,0.051443,97218.0,97217.0,0.3608]
[1736300029157,0.297,97225.0,97219.0,0.051442]
[1736300029357,0.297,97225.0,97217.0,0.3608]
[1736300029553,0.001,97218.0,97217.0,0.3608]
[1736300029754,0.002,97218.0,97217.0,0.412244]
[1736300030560,0.001,97218.0,97217.0,0.412244]
[1736300030962,0.001,97225.0,97223.0,0.05144]
[1736300032055,0.051437,97231.0,97223.0,0.05144]
[1736300032372,0.051437,97231.0,97230.0,0.3608]
[1736300033759,0.052437,97231.0,97230.0,0.3608]
[1736300034166,0.055437,97231.0,97230.0,0.3608]
[1736300034670,0.052437,97231.0,97230.0,0.3608]
[1736300034969,0.055437,97231.0,97230.0,0.3608]
[1736300035470,0.055437,97231.0,97230.0,0.27708184]
[1736300037567,0.055437,97231.0,97230.0,0.32785631]
[1736300041370,0.055437,97231.0,97230.0,0.29507068]
[1736300041870,0.054437,97231.0,97230.0,0.29507068]
[1736300042870,0.003,97231.0,97230.0,0.34650768]
[1736300044872,0.001,97231.0,97230.0,0.34650768]
[1736300045071,0.001,97231.0,97230.0,0.29507068]
[1736300045477,0.2969,97231.0,97230.0,0.29507068]
[1736300046087,0.5865,97231.0,97230.0,0.29507068]
[1736300047369,0.5865,97231.0,97230.0,0.26556362]
[1736300048379,0.5865,97231.0,97230.0,0.05077447]
[1736300048574,0.5865,97231.0,97220.0,0.10174056]
[1736300048971,0.05144,97225.0,97220.0,0.10174056]
[1736300049176,0.05144,97225.0,97220.0,0.15269354]
[1736300050781,0.1267973,97224.0,97220.0,0.15269354]
[1736300050981,0.1267973,97224.0,97220.0,0.05095298]
[1736300051280,0.4875973,97224.0,97214.0,0.3106]
[1736300051679,0.051444,97217.0,97214.0,0.3106]
[1736300053182,0.051444,97217.0,97214.0,0.36247106]
[1736300053484,0.051444,97216.0,97214.0,0.36247106]
[1736300054877,0.3608,97224.0,97214.0,0.36247106]
[1736300056873,0.1267973,97223.0,97214.0,0.36247106]
[1736300057882,0.3608,97224.0,97214.0,0.36247106]
[1736300058884,0.3608,97227.0,97214.0,0.36247106]
[1736300059180,0.3608,97227.0,97219.0,0.06677209]
[1736300060586,0.3608,97227.0,97214.0,0.05187106]
[1736300060788,0.3628,97227.0,97212.0,0.412246]
[1736300061480,0.06677209,97222.0,97213.0,0.3608]
[1736300061682,0.276,97221.0,97213.0,0.3608]
[1736300064690,0.279,97221.0,97213.0,0.3608]
[1736300064885,0.28,97221.0,97213.0,0.3608]
[1736300065482,0.28,97221.0,97201.0,0.3608]
[1736300065687,0.10180078,97220.0,97201.0,0.3608]
[1736300067293,0.10480078,97220.0,97201.0,0.3608]
[1736300068394,0.10580078,97220.0,97201.0,0.3608]
[1736300072689,0.3608,97213.0,97201.0,0.3608]
[1736300072893,0.2881,97212.0,97201.0,0.3608]
[1736300074701,0.2911,97212.0,97201.0,0.3608]
[1736300075195,0.2921,97212.0,97201.0,0.3608]
[1736300077994,0.2921,97212.0,97200.0,0.10180078]
[1736300078294,0.2921,97212.0,97199.0,0.3029]
[1736300078999,0.34416331,97212.0,97199.0,0.3029]
[1736300079601,0.2921,97212.0,97199.0,0.3029]
[1736300079799,0.001,97212.0,97206.0,0.3608]
[1736300080000,0.004,97212.0,97207.0,0.2845]
[1736300080298,0.004,97212.0,97209.0,0.3608]
[1736300080595,0.3608,97233.0,97211.0,0.051447]
[1736300080800,0.3608,97243.0,97223.0,0.46260078]
[1736300080992,0.3608,97243.0,97230.0,0.10180078]
[1736300081188,0.1267973,97234.0,97230.0,0.10180078]
[1736300081403,0.1267973,97234.0,97224.0,0.39740078]
[1736300081594,0.001,97233.0,97224.0,0.39740078]
[1736300082593,0.001,97234.0,97224.0,0.39740078]
[1736300082800,0.003,97233.0,97224.0,0.39740078]
[1736300083190,0.001,97234.0,97224.0,0.39740078]
[1736300083498,0.003,97233.0,97224.0,0.39740078]
[1736300083803,0.003,97233.0,97225.0,0.5859]
[1736300084100,0.004,97233.0,97225.0,0.5859]
[1736300084296,0.001,97233.0,97225.0,0.5859]
[1736300084792,0.003,97234.0,97225.0,0.5859]
[1736300084994,0.001,97233.0,97225.0,0.5859]
[1736300086000,0.004,97233.0,97225.0,0.5859]
[1736300087599,0.003,97233.0,97225.0,0.52731001]
[1736300088501,0.004,97233.0,97225.0,0.52731001]
[1736300088902,0.004,97233.0,97230.0,0.3608]
[1736300091410,0.003,97233.0,97230.0,0.3608]
[1736300091606,0.004,97233.0,97230.0,0.3608]
[1736300093007,0.004,97233.0,97230.0,0.26419857]
[1736300093405,0.004,97233.0,97230.0,0.15405751]
[1736300093901,0.004,97233.0,97230.0,0.11623011]
[1736300094102,0.004,97233.0,97225.0,0.52731001]
[1736300095103,0.003,97233.0,97225.0,0.52731001]
[1736300095409,0.004,97233.0,97225.0,0.52731001]
[1736300096199,0.1267973,97232.0,97225.0,0.52731001]
[1736300097410,0.1267973,97231.0,97225.0,0.52731001]
[1736300098609,0.1267973,97230.0,97225.0,0.52731001]
[1736300098798,0.1267973,97230.0,97225.0,0.28590798]
[1736300099297,0.1267973,97229.0,97225.0,0.28590798]
[1736300099501,0.1267973,97229.0,97225.0,0.20218677]
[1736300100401,0.002,97230.0,97225.0,0.20218677]
[1736300101212,0.002,97229.0,97225.0,0.20218677]
[1736300102605,0.001,97229.0,97225.0,0.20218677]
[1736300102805,0.001,97229.0,97225.0,0.02908138]
[1736300103406,0.003,97229.0,97225.0,0.02908138]
[1736300107809,0.003,97229.0,97224.0,0.29355521]
[1736300108813,0.001,97229.0,97224.0,0.29355521]
[1736300109008,0.003,97229.0,97224.0,0.29355521]
[1736300113818,0.003,97229.0,97224.0,0.20983414]
[1736300114421,0.003,97229.0,97224.0,0.05259759]
[1736300114620,0.003,97229.0,97223.0,0.2741]
[1736300115514,0.003,97229.0,97223.0,0.32492629]
[1736300116114,0.003,97229.0,97223.0,0.05082629]
[1736300116316,0.003,97229.0,97222.0,0.3608]
[1736300116510,0.3608,97227.0,97211.0,0.2814]
[1736300116711,0.3608,97227.0,97219.0,0.18595841]
[1736300117512,0.6516,97227.0,97219.0,0.18595841]
[1736300117712,0.6526,97227.0,97219.0,0.18595841]
[1736300118813,0.6536,97227.0,97219.0,0.18595841]
[1736300119220,0.6536,97227.0,97219.0,0.11919609]
[1736300119915,0.6536,97227.0,97219.0,0.05243377]
[1736300120117,0.002,97227.0,97219.0,0.412243]
[1736300120621,0.002,97227.0,97219.0,0.3608]
[1736300120920,0.002,97227.0,97220.0,0.051442]
[1736300121325,0.002,97227.0,97221.0,0.2711]
[1736300121513,0.002,97227.0,97221.0,0.322541]
[1736300123029,0.002,97227.0,97221.0,0.29028691]
[1736300123319,0.002,97227.0,97221.0,0.20860035]
[1736300124114,0.001,97227.0,97221.0,0.20860035]
[1736300124314,0.002,97227.0,97221.0,0.20860035]
[1736300125909,0.002,97227.0,97221.0,0.12488115]
[1736300129718,0.3608,97236.0,97221.0,0.12488115]
[1736300130025,0.3608,97236.0,97226.0,0.06676232]
[1736300130920,0.3618,97236.0,97226.0,0.06676232]
[1736300131727,0.3648,97236.0,97226.0,0.06676232]
[1736300140131,0.004,97236.0,97228.0,0.3608]
[1736300140333,0.2968,97256.0,97228.0,0.7216]
[1736300140630,0.3608,97272.0,97252.0,0.3608]
[1736300140934,0.2968,97271.0,97254.0,0.051424]
[1736300142331,0.00454301,97263.0,97253.0,0.38003378]
[1736300142922,0.05696301,97263.0,97254.0,0.051424]
[1736300143329,0.051424,97254.0,97252.0,0.40363589]
[1736300143529,0.565,97253.0,97252.0,0.04283589]
[1736300143830,0.051427,97248.0,97244.0,0.34966232]
[1736300144022,0.051429,97246.0,97244.0,0.32683354]
[1736300144933,0.051429,97246.0,97244.0,0.24313179]
[1736300145134,0.051429,97246.0,97244.0,0.24713179]
[1736300145842,0.051429,97246.0,97244.0,0.04793354]
[1736300146135,0.051429,97246.0,97244.0,0.04993354]
[1736300147334,0.051429,97246.0,97244.0,0.04893354]
[1736300147739,0.051429,97246.0,97244.0,0.04493354]
[1736300147936,0.051429,97246.0,97244.0,0.004]
[1736300148833,0.051429,97246.0,97244.0,0.001]
[1736300149031,0.051429,97246.0,97244.0,0.005]
[1736300149234,0.051429,97246.0,97244.0,0.006]
[1736300150236,0.04350956,97250.0,97244.0,0.00340001]
[1736300150436,0.051429,97245.0,97244.0,0.00340001]
[1736300150834,0.40424094,97251.0,97230.0,0.42756232]
[1736300151033,0.051433,97237.0,97230.0,0.42756232]
[1736300151228,0.06676232,97240.0,97230.0,0.3608]
[1736300151435,0.3608,97235.0,97221.0,0.3608]
[1736300151628,0.8424,97234.0,97225.0,0.06676232]
[1736300152234,0.8424,97234.0,97230.0,0.002]
[1736300152937,0.8424,97234.0,97202.0,0.512971]
[1736300152938,0.8424,97234.0,97225.0,0.003]
[1736300153239,0.3608,97226.0,97225.0,0.003]
[1736300153441,0.3608,97226.0,97210.0,0.06676232]
[1736300153939,0.3608,97226.0,97216.0,0.06676232]
[1736300155439,0.3608,97226.0,97210.0,0.10176397]
[1736300155636,0.3638,97226.0,97210.0,0.10276397]
[1736300156441,0.3638,97226.0,97210.0,0.10176397]
[1736300156636,0.3648,97226.0,97210.0,0.10176397]
[1736300157236,0.3638,97226.0,97218.0,0.3608]
[1736300157432,0.3648,97226.0,97218.0,0.3608]
[1736300157748,0.3618,97226.0,97218.0,0.3608]
[1736300158048,0.3648,97226.0,97218.0,0.3608]
[1736300158742,0.3638,97226.0,97218.0,0.3608]
[1736300158937,0.3648,97226.0,97218.0,0.3608]
[1736300159538,0.3638,97226.0,97209.0,0.3608]
[1736300159745,0.03237903,97220.0,97209.0,0.3608]
[1736300161243,0.03537903,97220.0,97209.0,0.3608]
[1736300161641,0.003,97220.0,97210.0,0.10176397]
[1736300161837,0.003,97220.0,97219.0,0.3608]
[1736300162646,0.004,97220.0,97219.0,0.3608]
[1736300163343,0.003,97220.0,97219.0,0.3608]
[1736300163540,0.004,97220.0,97219.0,0.3608]
[1736300164048,0.6648,97220.0,97195.0,0.00128]
[1736300164245,0.10176397,97205.0,97189.0,0.3608]
[1736300164454,0.2903,97204.0,97189.0,0.3608]
[1736300164753,0.07834991,97199.0,97189.0,0.3608]
[1736300164945,0.10176397,97200.0,97189.0,0.3608]
[1736300165246,0.20352794,97200.0,97189.0,0.3608]
[1736300165449,0.86432794,97200.0,97189.0,0.224719]
[1736300165645,0.3608,97192.0,97155.0,0.3608]
[1736300165947,0.3608,97192.0,97164.0,0.3608]
[1736300165948,0.4616,97191.0,97164.0,0.3608]
[1736300166164,0.10176397,97190.0,97181.0,0.360665]
[1736300166353,0.10176397,97190.0,97181.0,0.356352]
[1736300166645,0.003,97199.0,97181.0,0.356352]
[1736300166850,0.0948975,97191.0,97181.0,0.356352]
[1736300167250,0.3948975,97191.0,97181.0,0.356352]
[1736300167444,0.0948975,97191.0,97181.0,0.356352]
[1736300167954,0.18164636,97190.0,97181.0,0.356352]
[1736300168149,0.18164636,97190.0,97169.0,0.3608]
[1736300168150,0.3608,97185.0,97169.0,0.3608]
[1736300168351,0.3608,97185.0,97180.0,0.10176397]
[1736300168559,0.3608,97185.0,97170.0,0.20352794]
[1736300168756,0.3608,97185.0,97170.0,0.56432794]
[1736300169252,0.3618,97185.0,97171.0,0.2745]
[1736300169452,0.001,97185.0,97171.0,0.8515]
[1736300169646,0.0948975,97184.0,97171.0,0.8515]
[1736300170146,0.0948975,97184.0,97179.0,0.3608]
[1736300170754,0.69584085,97183.0,97179.0,0.3608]
[1736300170954,0.3608,97182.0,97171.0,0.69675856]
[1736300171364,0.56658448,97182.0,97171.0,0.69675856]
[1736300172448,0.0948975,97181.0,97171.0,0.69675856]
[1736300173455,0.3608,97173.0,97171.0,0.69675856]
[1736300174754,0.3608,97173.0,97171.0,0.577]
[1736300174952,0.0948975,97172.0,97171.0,0.577]
[1736300175855,0.20578448,97172.0,97171.0,0.577]
[1736300176359,0.20778448,97172.0,97171.0,0.577]
[1736300176751,0.20878448,97172.0,97171.0,0.577]
[1736300177151,0.20878448,97172.0,97171.0,0.0614096]
[1736300177351,0.20878448,97172.0,97163.0,0.10176397]
[1736300177751,0.20878448,97172.0,97163.0,0.10172397]
[1736300177951,0.20878448,97172.0,97160.0,0.10176397]
[1736300178147,0.003,97172.0,97160.0,0.10176397]
[1736300178865,0.002,97172.0,97160.0,0.10176397]
[1736300179054,0.003,97172.0,97160.0,0.10176397]
[1736300179255,0.001,97172.0,97160.0,0.10176397]
[1736300179452,0.003,97172.0,97160.0,0.10176397]
[1736300179663,0.3608,97161.0,97157.0,0.2901]
[1736300180354,0.3608,97161.0,97158.0,0.5645]
[1736300181060,0.003,97172.0,97160.0,0.3608]
[1736300181259,0.003,97172.0,97162.0,0.20352794]
[1736300181465,0.001,97172.0,97162.0,0.10176397]
[1736300181656,0.3608,97173.0,97162.0,0.10176397]
[1736300181956,0.11088698,97181.0,97170.0,0.3608]
[1736300182157,0.05101582,97184.0,97170.0,0.46256397]
[1736300182358,0.05101582,97184.0,97172.0,0.3608]
[1736300183349,0.05101582,97184.0,97160.0,0.3608]
[1736300183350,0.05101582,97184.0,97160.0,0.46256397]
[1736300183548,0.3608,97175.0,97160.0,0.46256397]
[1736300184862,0.3628,97175.0,97160.0,0.46256397]
[1736300185053,0.09488845,97174.0,97160.0,0.46256397]
[1736300186061,0.20577543,97173.0,97160.0,0.46256397]
[1736300186661,0.20577543,97172.0,97160.0,0.46256397]
[1736300187265,0.20577543,97172.0,97160.0,0.3608]
[1736300187665,0.11088698,97171.0,97160.0,0.46256397]
[1736300188364,0.11088698,97171.0,97168.0,0.3608]
[1736300188567,0.11088698,97170.0,97168.0,0.3608]
[1736300188752,0.11088698,97170.0,97160.0,0.46256397]
[1736300189966,0.003,97171.0,97169.0,0.3608]
[1736300190265,0.003,97171.0,97160.0,0.46256397]
[1736300190856,0.001,97170.0,97160.0,0.46256397]
[1736300191061,0.003,97170.0,97160.0,0.46256397]
[1736300191669,0.001,97170.0,97160.0,0.46256397]
[1736300192259,0.002,97170.0,97160.0,0.46256397]
[1736300194162,0.003,97170.0,97160.0,0.46256397]
[1736300195467,0.003,97170.0,97160.0,0.45621389]
[1736300195856,0.10476397,97170.0,97160.0,0.35444992]
[1736300197269,0.003,97170.0,97160.0,0.35444992]
[1736300197468,0.003,97170.0,97160.0,0.25777256]
[1736300197662,0.10476397,97170.0,97160.0,0.25777256]
[1736300197860,0.3608,97161.0,97158.0,0.5645]
[1736300198472,0.3608,97161.0,97158.0,0.50435001]
[1736300199362,0.3618,97161.0,97158.0,0.50435001]
[1736300199563,0.3618,97161.0,97158.0,0.02493467]
[1736300201456,0.3618,97161.0,97142.0,0.275]
[1736300203368,0.10176397,97160.0,97142.0,0.275]
[1736300203771,0.3618,97161.0,97142.0,0.275]
[1736300204563,0.3608,97152.0,97143.0,0.2885]
[1736300204768,0.3608,97152.0,97140.0,0.46256397]
[1736300204769,0.3608,97152.0,97140.0,0.3608]
[1736300204960,0.6608,97152.0,97139.0,0.3608]
[1736300205164,0.2936,97151.0,97139.0,0.3608]
[1736300205366,0.07418209,97149.0,97139.0,0.3608]
[1736300205666,0.3608,97144.0,97126.0,0.5744]
[1736300207068,0.3618,97144.0,97126.0,0.5744]
[1736300207472,0.3638,97144.0,97126.0,0.2885]
[1736300208365,0.3638,97144.0,97125.0,0.3608]
[1736300208679,0.1569667,97133.0,97125.0,0.3608]
[1736300208970,0.1569667,97133.0,97112.0,0.2849]
[1736300209173,0.2904,97132.0,97122.0,0.3608]
[1736300209964,0.3608,97130.0,97108.0,0.3608]
[1736300210766,0.46256397,97130.0,97108.0,0.3608]
[1736300210972,0.11092044,97129.0,97108.0,0.3608]
[1736300211180,0.11092044,97129.0,97123.0,0.358531]
[1736300211379,0.41092044,97129.0,97123.0,0.357623]
[1736300211675,0.11092044,97129.0,97123.0,0.357623]
[1736300211869,0.11092044,97128.0,97123.0,0.357623]
[1736300212070,0.11092044,97128.0,97123.0,0.03940887]
[1736300212567,0.11092044,97127.0,97110.0,0.10176397]
[1736300213368,0.001,97129.0,97110.0,0.10176397]
[1736300213572,0.002,97129.0,97110.0,0.10176397]
[1736300213778,0.001,97128.0,97110.0,0.10176397]
[1736300214071,0.001,97128.0,97108.0,0.3608]
[1736300214271,0.002,97127.0,97108.0,0.3608]
[1736300214477,0.10176397,97120.0,97108.0,0.3608]
[1736300214973,0.3608,97123.0,97108.0,0.3608]
[1736300215170,0.10176397,97120.0,97108.0,0.3608]
[1736300216579,0.10376397,97120.0,97108.0,0.3608]
[1736300216880,0.10476397,97120.0,97108.0,0.3608]
[1736300217977,0.15650168,97120.0,97108.0,0.3608]
[1736300219974,0.05473771,97120.0,97108.0,0.3608]
[1736300220180,0.05473771,97120.0,97110.0,0.10176397]
[1736300220370,0.05473771,97120.0,97108.0,0.3608]
[1736300220868,0.05473771,97120.0,97110.0,0.10176397]
[1736300221071,0.05373771,97120.0,97110.0,0.10176397]
[1736300221276,0.05473771,97120.0,97111.0,0.2667]
[1736300222276,0.05473771,97120.0,97111.0,0.24473804]
[1736300223777,0.001,97120.0,97116.0,0.2914996]
[1736300223977,0.05135218,97138.0,97116.0,0.2914996]
[1736300224281,0.3608,97142.0,97127.0,0.3608]
[1736300224671,0.4127094,97142.0,97127.0,0.3608]
[1736300224876,0.4127094,97142.0,97124.0,0.3608]
[1736300225086,0.4127094,97142.0,97130.0,0.10176397]
[1736300225281,0.4127094,97142.0,97131.0,0.2608]
[1736300226075,0.4127094,97142.0,97131.0,0.17697118]
[1736300226582,0.4137094,97142.0,97131.0,0.17697118]
[1736300226975,0.4157094,97142.0,97132.0,0.00664452]
[1736300227275,0.4157094,97142.0,97132.0,0.27864452]
[1736300227479,0.4137094,97142.0,97132.0,0.27864452]
[1736300227783,0.4157094,97142.0,97132.0,0.27864452]
[1736300228084,0.4137094,97142.0,97132.0,0.27864452]
[1736300228281,0.4157094,97142.0,97132.0,0.27864452]
[1736300228677,0.51747337,97142.0,97132.0,0.27864452]
[1736300228878,0.51647337,97142.0,97132.0,0.27864452]
[1736300229074,0.51747337,97142.0,97132.0,0.27864452]
[1736300229584,0.3608,97139.0,97132.0,0.27864452]
[1736300230581,0.3618,97139.0,97132.0,0.27864452]
[1736300230789,0.12687646,97138.0,97132.0,0.27864452]
[1736300231282,0.12687646,97138.0,97132.0,0.00101273]
[1736300231686,0.12687646,97137.0,97132.0,0.00101273]
[1736300231988,0.12687646,97137.0,97113.0,0.3608]
[1736300232184,0.3608,97117.0,97103.0,0.3608]
[1736300233695,0.3638,97117.0,97106.0,0.3608]
[1736300233889,0.2569,97116.0,97106.0,0.3608]
[1736300234680,0.12687646,97115.0,97106.0,0.3608]
[1736300235889,0.12687646,97114.0,97106.0,0.3608]
[1736300236086,0.12687646,97114.0,97100.0,0.1]
[1736300236388,0.12687646,97114.0,97100.0,0.03292841]
[1736300236685,0.10176397,97110.0,97100.0,0.03292841]
[1736300236879,0.10176397,97110.0,97100.0,0.03274141]
[1736300237079,0.3608,97108.0,97100.0,0.03274141]
[1736300237479,0.3608,97108.0,97100.0,0.03200841]
[1736300237677,0.6608,97108.0,97091.0,0.3608]
[1736300237881,0.10176397,97101.0,97091.0,0.3608]
[1736300238585,0.33200832,97092.0,97078.0,0.2507]
[1736300238981,0.00381925,97091.0,97078.0,0.2507]
[1736300240481,0.00581925,97091.0,97078.0,0.2507]
[1736300240882,0.00381925,97091.0,97086.0,0.3608]
[1736300241092,0.00581925,97091.0,97086.0,0.3608]
[1736300241391,0.00581925,97091.0,97087.0,0.2455]
[1736300241988,0.05765166,97091.0,97087.0,0.2455]
[1736300242185,0.00581925,97091.0,97088.0,0.3608]
[1736300242786,0.00481925,97091.0,97088.0,0.3608]
[1736300242986,0.00681925,97091.0,97088.0,0.3608]
[1736300243690,0.00681925,97091.0,97088.0,0.3029055]
[1736300243990,0.00481925,97091.0,97088.0,0.24227551]
[1736300244195,0.00681925,97091.0,97088.0,0.15841238]
[1736300244489,0.3608,97104.0,97088.0,0.15841238]
[1736300244686,0.41355117,97104.0,97097.0,0.3608]
[1736300245091,0.05275117,97104.0,97097.0,0.3608]
[1736300245297,0.10176397,97120.0,97097.0,0.3608]
[1736300245492,0.10176397,97120.0,97100.0,0.10176397]
[1736300245799,0.10176397,97120.0,97101.0,0.2608]